Cogmind - Beta 16 @@@ ROGUE MODE // 2025.12.29 @ 19:40:58 Player: Compilatron Result: Destroyed by L9-0IQ(j) with Overtuned Pulse Rifle Performance ------------- Evolutions (0) 0 Regions Visited (3) 600 Robots Destroyed (18) 90 Value Destroyed (665) 665 Prototype IDs (1) 20 Alien Tech Used (0) 0 Bonus (1092) 1092 TOTAL SCORE: 2467 Bonus ------- Follower Combat Kills 292 Registered with UFD 300 Met Optimus in HQ 500 Cogmind --------- Core Integrity 0/250 Matter 259/300 Energy 113/310 System Corruption 1% Temperature Hot (235) Movement Treading (180) Ox2 Location -9/Scraptown Parts ------- > --- POWER (1) -------- Fission Core > --- PROPULSION (2) --- Overtuned Treads > --- UTILITY (2) ------ Large Storage Unit Makeshift Light Armor Plating > --- WEAPON (2) ------- Heavy Battle Rifle Flamer > --- INVENTORY (15) --- Scrap Suit Visual Processing Unit Advanced Sensor Array Makeshift Hacking Suite A0-MCA's Component Scanner Thermic Laser CPS Tube (2) Flamer Great Maul Peak State ------------ > --- POWER ------------ Fission Core > --- PROPULSION ------- Light Treads Armored Wheel > --- UTILITY ---------- Large Storage Unit Hardened Medium Armor Plating > --- WEAPON ----------- Heavy Battle Rifle Heavy Battle Rifle > --- INVENTORY -------- Fission Core Fission Core Armored Wheel Advanced Heat Sink Matter Compressor Advanced Sensor Array Improved Hardlight Generator A0-MCA's Component Scanner Riot Gun Thermic Laser EM Pulse Cannon Heavy Battle Rifle CPS Tube Great Maul Botcube [Rating: 27] Favorites ----------- Power Ion Engine Engine Ion Engine Power Core Fission Core Propulsion Light Treads Treads Light Treads Leg Aluminum Leg Wheel Armored Wheel Utility Large Storage Unit Device Improved Heat Sink Storage Large Storage Unit Protection Hardened Medium Armor Plating Weapon Assault Rifle Ballistic Gun Assault Rifle Special Weapon Flamer Build | -11 -10 -10 -9 ------- Run | Yrd Mat Sub Scr Slots Evolved . | . . . . Power . | . . . . Propulsion . | . . . . Utility . | . . . . Weapon . | . . . . Parts Attached 18 | 2 2 . 14 Power 3 | . 1 . 2 Engine 1 | . 1 . . Core 2 | . . . 2 Reactor . | . . . . Propulsion 4 | 2 1 . 1 Treads 2 | 1 . . 1 Leg . | . . . . Wheel 2 | 1 1 . . Hover . | . . . . Flight . | . . . . Utility 5 | . . . 5 Device 2 | . . . 2 Storage 1 | . . . 1 Processor . | . . . . Hackware . | . . . . Protection 2 | . . . 2 Artifact . | . . . . Weapon 6 | . . . 6 Energy Gun . | . . . . Energy Cannon . | . . . . Ballistic Gun 4 | . . . 4 Ballistic Cannon . | . . . . Launcher . | . . . . Special Weapon 2 | . . . 2 Impact Weapon . | . . . . Slashing Weapon . | . . . . Piercing Weapon . | . . . . Special Melee Weapon . | . . . . Unidentified Prototypes . | . . . . Parts Lost 6 | . . . 6 Power 1 | . . . 1 Propulsion 2 | . . . 2 Utility 1 | . . . 1 Weapon 2 | . . . 2 Highest Loss Streak 5 | . . . 5 To Critical Strikes . | . . . . Average Backups 11 | 6 3 4 12 Power . | 1 . . . Propulsion 1 | 4 2 3 1 Utility 3 | . . . 4 Weapon 4 | 1 1 1 5 Tool/Special . | . . . . Unused Backups 29 | . 4 . 25 Power 3 | . 1 . 2 Propulsion 3 | . . . 3 Utility 13 | . 1 . 12 Weapon 10 | . 2 . 8 Tool/Special . | . . . . Average Slot Usage (%) 93 | . 85 85 95 Engine 11 | . 14 14 10 Core 2 | . . . 3 Treads 14 | . 14 14 14 Wheel 14 | . 14 14 14 Storage 14 | . 14 14 14 Protection 8 | . . . 9 Ballistic Gun 27 | . 28 28 27 Peak Build Rating 27 | 6 7 7 27 Average Rating 14 | 6 6 7 15 On Entrance 6 | 6 6 7 7 Avg Prop Armor Cover (%) 9 | . 11 11 9 Naked Turns . | . . . . Heaviest Build 46 | 12 14 14 46 Greatest Support 12 | 10 12 12 12 Greatest Overweight (x) 3 | 1 1 1 3 Average Overweight (x) 2 | 1 1 1 2 Largest Inventory Capacity 15 | 8 8 8 15 Average Capacity 13 | 8 8 8 14 Most Carried 15 | 6 5 5 15 Average Carried 11 | 5 3 4 12 Final Capacity 15 | 8 8 8 15 Final Carried 10 | 4 4 5 10 Class Distribution -------------------- 100% | Mutant Dominant Class ---------------- Mutant | -10/Materials Mutant | -10/Subcaves Mutant | -9/Scraptown Resources | -11 -10 -10 -9 ----------- Run | Yrd Mat Sub Scr Matter Collected 809 | 200 124 6 479 Remotely . | . . . . Salvage Created 895 | . 130 . 765 Parts 37 | . 7 . 30 Haulers Intercepted 1 | . 1 . . Recyclers Shooed . | . . . . Parts Field Recycled . | . . . . Retrieved Matter . | . . . . Parts Self-Destructed 7 | . . 7 . Prevented . | . . . . Parts Restored . | . . . . Kills | -11 -10 -10 -9 ------- Run | Yrd Mat Sub Scr Combat Hostiles Destroyed 16 | . 3 . 13 Guns 16 | . 3 . 13 Classes Destroyed 10 | . 4 . 6 Hauler 1 | . 1 . . Watcher 1 | . 1 . . Swarmer 2 | . 2 . . Grunt 1 | . 1 . . Federalist 1 | . . . 1 Explorer 1 | . . . 1 Ranger 2 | . . . 2 Guru 1 | . . . 1 Scrapper 7 | . . . 7 Savage 1 | . . . 1 Best Kill Streak 5 | . 3 . 5 Combat Bots Only 5 | . 2 . 5 Max Kills in Single Turn 2 | . 1 . 2 Gunslinging 1 | . . . 1 Exploded . | . . . . Melee . | . . . . Uniques/NPCs Destroyed . | . . . . Combat | -11 -10 -10 -9 -------- Run | Yrd Mat Sub Scr Hostile Shots Fired 122 | . 11 . 111 Missed 30 | . 6 . 24 Hits 92 | . 5 . 87 Projectile 92 | . 5 . 87 Critical Strikes 5 | . . . 5 Damage Taken 1284 | . 51 . 1233 Core 250 | . . . 250 Absorbed by Shields . | . . . . Core Remaining (%) 100 | 100 . . . Volleys Fired 55 | . 15 3 37 Largest 2 | . 2 2 2 Hottest 133 | . 40 40 133 Shots Fired 107 | . 28 6 73 Gun 106 | . 28 6 72 Cannon . | . . . . Launcher . | . . . . Special 1 | . . . 1 Kinetic 106 | . 28 6 72 Thermal 1 | . . . 1 Explosive . | . . . . Electromagnetic . | . . . . Robot Hit Streak 8 | . 5 8 6 Robot Miss Streak 4 | . 2 2 4 Penetration Max . | . . . . Secondary Targets 5 | . 1 . 4 Max Gunslinging Chain 1 | . 1 . 1 Shots Hit Robots 63 | . 16 4 43 Core Hits 32 | . 7 2 23 Critical Kills . | . . . . Critical Parts Destroyed . | . . . . Critical Strikes 1 | . . . 1 Burn 1 | . . . 1 Melee Attacks . | . . . . Impact . | . . . . Slashing . | . . . . Piercing . | . . . . Sneak Attacks . | . . . . Combat Hostiles . | . . . . Follow-up Attacks . | . . . . Damage Inflicted 1172 | . 202 56 914 Guns 1153 | . 195 56 902 Cannons . | . . . . Explosions . | . . . . Melee . | . . . . Ramming 7 | . 7 . . Kinetic 1153 | . 195 56 902 Thermal 12 | . . . 12 Explosive . | . . . . Electromagnetic . | . . . . Impact . | . . . . Slashing . | . . . . Piercing . | . . . . Highest Corruption 1 | . . . 1 Average Corruption 1 | . . . 1 Corruption Purged . | . . . . Corruption Blocked . | . . . . Overload Shots . | . . . . Overflow Damage . | . . . . Projectiles . | . . . . Explosions . | . . . . Melee . | . . . . Knockbacks . | . . . . Impact . | . . . . Kinetic . | . . . . Secondary . | . . . . Self-Inflicted Damage 3 | . 3 . . Shots . | . . . . Rammed 2 | . 2 . . Targets Rammed 2 | . 2 . . Kicked . | . . . . Crushed . | . . . . Highest Temperature 306 | . . . 306 Average Temperature 94 | . . . 94 Received Heat Transfer 616 | . 18 . 598 Effects 1 | . . . 1 Interference 1 | . . . 1 Siege Activations . | . . . . Martial Activations . | . . . . Shielding Activations . | . . . . Robots Disrupted . | . . . . Combat Hostiles . | . . . . Robots Corrupted . | . . . . Combat Hostiles . | . . . . Parts Fried . | . . . . Impact Corruptions . | . . . . Robots Melted . | . . . . Combat Hostiles . | . . . . Parts Melted 4 | . . . 4 Heat Transferred 240 | . . . 240 Parts Sabotaged . | . . . . Parts Stolen . | . . . . Parts Stripped . | . . . . Power Chain Reactions . | . . . . Alert | -11 -10 -10 -9 ------- Run | Yrd Mat Sub Scr Maximum Alert Level . | . . . . Low Security (%) 100 | 100 100 . . Level 1 . | . . . . Level 2 . | . . . . Level 3 . | . . . . Level 4 . | . . . . Level 5 . | . . . . High Security . | . . . . Max Security . | . . . . Peak Influence 57 | . 57 . . Initial . | . . . . Average 25 | . 26 . . Influence Increases 84 | . 84 . . Destroy 0b10 Robot/C 60 | . 60 . . Destroy 0b10 Robot/NC 10 | . 10 . . Destroy Leader 14 | . 14 . . Influence Decreases 84 | . 70 14 . Entered New Map 7 | . . 7 . Time Decay 77 | . 70 7 . Squads Dispatched 1 | . 1 . . Investigation . | . . . . Extermination . | . . . . Reinforcement 1 | . 1 . . Assault . | . . . . Garrison . | . . . . Intercept . | . . . . Searches Triggered . | . . . . Construction Impeded . | . . . . Haulers Reinforced . | . . . . Active Scanning Responses . | . . . . Cargo Convoy Interrupts . | . . . . Stealth | -11 -10 -10 -9 --------- Run | Yrd Mat Sub Scr Distress Signals 1 | . 1 . . Communications Jammed . | . . . . Distress Signals . | . . . . Times Spotted 42 | . 8 1 33 Peak Tracking Total 6 | . 4 1 6 Tactical Retreats . | . . . . Traps | -11 -10 -10 -9 ------- Run | Yrd Mat Sub Scr Traps Triggered 1 | . 1 . . Indirectly . | . . . . Trap Hack Attempts . | . . . . Triggered . | . . . . Disarmed . | . . . . Reprogrammed . | . . . . Reused . | . . . . Traps Extracted . | . . . . Installed . | . . . . Triggered . | . . . . Machines | -11 -10 -10 -9 ---------- Run | Yrd Mat Sub Scr Machines Disabled 3 | . . . 3 Max in Single Turn 1 | . . . 1 Machines Repaired . | . . . . Machines Dismantled . | . . . . Machines Sabotaged . | . . . . Overloaded Fab Kills . | . . . . Hacking | -11 -10 -10 -9 --------- Run | Yrd Mat Sub Scr Machines Accessed 6 | . . . 6 Terminals . | . . . . Fabricators . | . . . . Repair Stations . | . . . . Recycling Units . | . . . . Scanalyzers . | . . . . Garrison Access . | . . . . Total Hacks 42 | . . . 42 Successful 42 | . . . 42 Failed . | . . . . Catastrophic . | . . . . Database Lockouts . | . . . . Manual . | . . . . Terminals . | . . . . Fabricators . | . . . . Repair Stations . | . . . . Recycling Units . | . . . . Scanalyzers . | . . . . Garrison Access . | . . . . Terminal Hacks 42 | . . . 42 Record 42 | . . . 42 Fabricator Hacks . | . . . . Repair Station Hacks . | . . . . Recycling Unit Hacks . | . . . . Scanalyzer . | . . . . Garrison Access Hacks . | . . . . Unauthorized Hacks . | . . . . Terminals . | . . . . Fabricators . | . . . . Repair Stations . | . . . . Recycling Units . | . . . . Scanalyzers . | . . . . Garrison Access . | . . . . Data Cores Recovered . | . . . . Used . | . . . . Hacking Detections . | . . . . Full Trace Events . | . . . . Feedback Events . | . . . . Feedback Blocked . | . . . . Robot Schematics Acquired . | . . . . Robots Built . | . . . . Authchips . | . . . . Time . | . . . . Total Robot Build Rating . | . . . . Part Schematics Acquired . | . . . . Parts Built . | . . . . Authchips . | . . . . Time . | . . . . Total Part Build Rating . | . . . . Part Studies Acquired . | . . . . Parts Repaired . | . . . . Time . | . . . . Parts Recycled . | . . . . Recycled Matter . | . . . . Retrieved Matter . | . . . . Retrieved Components . | . . . . Parts Scanalyzed . | . . . . Part Schematics Acquired . | . . . . Parts Damaged . | . . . . Bothacking | -11 -10 -10 -9 ------------ Run | Yrd Mat Sub Scr Used RIF Installer . | . . . . Robots Hacked . | . . . . Non-combat . | . . . . Combat . | . . . . Robot Hacks Applied . | . . . . Relay Couplers Released . | . . . . Fabnet Peak Effective % . | . . . . Robots Rewired . | . . . . Allies Hacked . | . . . . Hacks Repelled . | . . . . Allies | -11 -10 -10 -9 -------- Run | Yrd Mat Sub Scr Total Allies 1 | . . . 1 Largest Group 1 | . . . 1 Highest-Rated Group 53 | . . . 53 Highest-Rated Ally 53 | . . . 53 Total Orders . | . . . . Ally Attacks 40 | . . . 40 Total Damage 657 | . . . 657 Kills 9 | . . . 9 Allies Corrupted . | . . . . Allies Melted 8 | . . . 8 Intel | -11 -10 -10 -9 ------- Run | Yrd Mat Sub Scr Active Infowar (turns) . | . . . . Robot Analysis Total . | . . . . Derelict Logs Recovered 1 | . . 1 . Drone Launches . | . . . . Drone Recoveries . | . . . . Exploration | -11 -10 -10 -9 ------------- Run | Yrd Mat Sub Scr Turns Passed 2995 | 5 161 250 2579 Spaces Moved 2114 | 1 95 173 1845 Core . | . . . . Treads . | . . . . Legs . | . . . . Wheels 2114 | 1 95 173 1845 Hover . | . . . . Flight . | . . . . Fastest Speed 95 | 95 95 105 105 Average Speed 124 | 95 97 105 127 Slowest Speed 135 | 95 105 105 135 Overloaded Moves . | . . . . Propulsion Burnouts . | . . . . Robots Hopped . | . . . . Potential Cave-ins . | . . . . Cave-ins Triggered . | . . . . Exploration Rate (%) 34 | 2 26 23 85 Regions Visited 3 Branch Regions 2 Pre-discovered Areas . | . . . . Known Exits Taken . | . . . . Unknown Exits Taken 3 | 1 1 1 . Scrap Searched 5 | . . . 5 Spaces Dug . | . . . . Terrain Destroyed . | . . . . Melee . | . . . . Projectile . | . . . . AOE . | . . . . Terrain Rammed . | . . . . Walls Destroyed . | . . . . Machines Disabled . | . . . . Actions | -11 -10 -10 -9 --------- Run | Yrd Mat Sub Scr Total 2384 | 4 135 235 2010 Wait 129 | . 19 59 51 Move 2111 | . 94 172 1845 Hop . | . . . . Pick Up 34 | . 2 1 31 Fast Attach 4 | . . . 4 Attach 8 | . 1 . 7 Detach 1 | . . . 1 Swap 8 | 2 1 . 5 Drop 32 | 2 1 . 29 Fire 55 | . 15 3 37 Melee . | . . . . Ram 2 | . 2 . . Kick . | . . . . Crush . | . . . . Escape Stasis . | . . . . Rewire . | . . . . Trap . | . . . . Miscellaneous . | . . . . Route ------- -11/Scrapyard -10/Materials (discovered 2 exits: [*Mat] / [*Sub]) -10/Subcaves (discovered 2 exits: *Scr x2) -9/Scraptown (discovered 2 exits: *Fac x2) History --------- Turn | Location | Event 6 | -11/Scrapyard | Discovered new exit (range 0) 6 | -11/Scrapyard | Entered Materials 7 | -10/Materials | Met a group of wandering Federalists 106 | -10/Materials | Discovered new exit (range 12) 117 | -10/Materials | Discovered new exit (range 12) 167 | -10/Materials | Entered Subcaves 168 | -10/Subcaves | Continued accompanying wandering Federalists (5) 168 | -10/Subcaves | Approached by a straggling Scientist 223 | -10/Subcaves | Learned location of 2 exits from Materials 305 | -10/Subcaves | Build established: Mutant 341 | -10/Subcaves | Scientist uncovered a shortcut to Scraptown 417 | -10/Subcaves | Entered Scraptown 581 | -9/Scraptown | Visited SPCMW 656 | -9/Scraptown | Visited Assassins FH 1103 | -9/Scraptown | Visited Bundlers 1157 | -9/Scraptown | Heard Great Nut preacher, LISTEN AND RECITE! 1231 | -9/Scraptown | Visited Awakened 1288 | -9/Scraptown | Visited Cyclists 1334 | -9/Scraptown | Visited UFD Registry 1343 | -9/Scraptown | Visited Artisan Demo Area 1575 | -9/Scraptown | Discovered new exit (range 7) 2053 | -9/Scraptown | Registered with UFD as "Protonblaster" 2096 | -9/Scraptown | Visited Curators Association 2178 | -9/Scraptown | Entered Cyclist Reading Room 2265 | -9/Scraptown | Visited LU-1G1's Boring Crew 2330 | -9/Scraptown | Visited A0-MCA Data Center 2340 | -9/Scraptown | Given an A- rating by A0-MCA 2344 | -9/Scraptown | Found A0-MCA's Component Scanner 2389 | -9/Scraptown | Visited Supply Room 2450 | -9/Scraptown | Visited Scrapoid Pod Storage 2473 | -9/Scraptown | Visited Observation Area 2535 | -9/Scraptown | Visited Botcube Research 2548 | -9/Scraptown | Found Botcube 2580 | -9/Scraptown | Botcube activated 2596 | -9/Scraptown | Botcube completed mutation into wheeled form, armed with 1 gun, 1 cannon. 2635 | -9/Scraptown | Met Optimus 2635 | -9/Scraptown | Accepted into 0bPrime 2712 | -9/Scraptown | Visited Supply Room 2753 | -9/Scraptown | Civil war broke out across Scraptown 2827 | -9/Scraptown | Identified exit to Factory 2851 | -9/Scraptown | Found Scrap Suit 2857 | -9/Scraptown | Lost 10 allies 2958 | -9/Scraptown | Lost 6 allies 2985 | -9/Scraptown | Core integrity fell below 50% 2996 | -9/Scraptown | Core integrity fell below 20% 2996 | -9/Scraptown | Destroyed by L9-0IQ(j) with Overtuned Pulse Rifle Last Messages --------------- 02975_ Acquired 18 matter. 02977_ KP-6D9(j) cannibalizes Salvaging Laser to repair Ovr. Pulse Rifle. 02979_ Fission Core destroyed. 02982_ Hvy. Battle Rifle destroyed. 02983_ Penetrated by Bolt. 02986_ Critical hit (Burn: +50). 02988_ Hvy. Battle Rifle destroyed. 02988_ Penetrated by Bolt. 02989_ XJ-YHQ(j): "Can't we all just get along?" 02990_ Penetrated by Bolt. 02990_ Lgt. Treads destroyed. 02990_ Penetrated by Bolt. 02990_ Arm. Wheel destroyed. 02992_ Slug penetrates WP-4GV(p). 02993_ Penetrated by Bolt. 02993_ P2-YBR(h) suffers critical hit (Burn). 02993_ P2-YBR(h) destroyed. 02994_ Critical hit (Burn: +50). [Achievement: I Think I Know What's Going On] Map ----- +----------------------------------------------------+ | | | | | | | | | | | | | | | | | ?????????????????????????????????????????????????? | | ?????????????????????????????????????????????????? | | ?????????????????????????????????????????????????? | | ?????????????????????????????????????????????????? | | ?????????????????????????????????????????????????? | | ?????????????????????????????????????????????????? | | ?????????????????????????????????????????????????? | | ?????????????????????????????????????????????????? | | ?????????????????????????????????????????????????? | | ?????????????????????????????????????????????????? | | ?????????????????????????????????????????????????? | | ?????????????????????????????????????????????????? | | ?????????????????????????????????????????????????? | | ????????????????????####?????????????????????????? | | ????????????#""????##[=###?????